fUSD/lending_fUSD_20240318
["ID","MTS","AMOUNT","RATE_DAILY","PERIOD"]
[319440011,1710741049796,-200.0,0.0002222,2]
[319440012,1710741049806,-609.11947539,0.00022236,2]
[319440013,1710741049815,-203.45609981,0.000223,2]
[319440014,1710741049824,-150.49823158,0.00022401,2]
[319440015,1710741049834,-152.41830901,0.00022414,2]
[319440016,1710741049842,-2000.0,0.00022442,2]
[319440017,1710741049851,-200.0,0.00022442,2]
[319440018,1710741049860,-2000.0,0.00022442,2]
[319440019,1710741049870,-200.0,0.00022442,2]
[319440020,1710741049880,-2000.0,0.00022442,2]
[319440021,1710741049889,-200.0,0.00022442,2]
[319440022,1710741049899,-152.660415,0.00022466,2]
[319440023,1710741049909,-151.20983331,0.00022486,2]
[319440024,1710741049918,-903.25575883,0.000225,5]
[319440025,1710741049928,-168.32211849,0.00022504,2]
[319440026,1710741049940,-414.96,0.00022601,2]
[319440027,1710741049950,-747.37,0.00022601,2]
[319440028,1710741049959,-414.96,0.00022601,2]
[319440029,1710741049968,-414.96,0.00022601,2]
[319440030,1710741049978,-404.3,0.00022601,2]
[319440031,1710741049987,-2000.0,0.00022667,2]
[319440032,1710741049997,-200.0,0.00022667,2]
[319440033,1710741050006,-2000.0,0.00022667,2]
[319440034,1710741050016,-200.0,0.00022667,2]
[319440035,1710741050027,-2000.0,0.00022667,2]
[319440036,1710741050036,-200.0,0.00022667,2]
[319440037,1710741050047,-840.0,0.00022697,2]
[319440038,1710741050056,-152.41830901,0.0002271,2]
[319440039,1710741050066,-150.0,0.00022711,2]
[319440040,1710741050076,-152.29531727,0.00022723,2]
[319440041,1710741050085,-577.13,0.00022752,2]
[319440042,1710741050095,-2561.0,0.00022773,2]
[319440043,1710741050105,-1378.0,0.00022773,2]
[319440044,1710741050114,-959.0,0.00022773,2]
[319440045,1710741050124,-1226.0,0.00022773,2]
[319440046,1710741050134,-536.0,0.00022773,2]
[319440047,1710741050144,-457.0,0.00022773,2]
[319440048,1710741050156,-603.0,0.00022773,2]
[319440049,1710741050165,-1264.0,0.00022773,2]
[319440050,1710741050174,-1250.0,0.00022773,2]
[319440051,1710741050186,-278.0,0.00022773,2]
[319440052,1710741050196,-432.0,0.00022773,2]
[319440053,1710741050205,-2931.0,0.00022773,2]
[319440054,1710741050215,-1136.0,0.00022773,2]
[319440055,1710741050226,-800.0,0.00022773,2]
[319440056,1710741050235,-357.0,0.00022773,2]
[319440057,1710741050245,-1459.0,0.00022773,2]
[319440058,1710741050254,-2419.0,0.00022773,2]
[319440059,1710741050264,-213.0,0.00022773,2]
[319440060,1710741050273,-1623.0,0.00022773,2]
[319440061,1710741050282,-204.0,0.00022784,2]
[319440062,1710741050291,-4762.0,0.00022873,2]
[319440063,1710741050302,-42884.0,0.00022873,2]
[319440064,1710741050311,-150.0,0.00022873,2]
[319440065,1710741050320,-5669.0,0.00022873,2]
[319440066,1710741050330,-150.0,0.00022873,2]
[319440067,1710741050339,-150.0,0.00022873,2]
[319440068,1710741050348,-1044.0,0.00022873,2]
[319440069,1710741050357,-150.0,0.00022873,2]
[319440070,1710741050366,-2000.0,0.00022893,2]
[319440071,1710741050376,-200.0,0.00022893,2]
[319440072,1710741050385,-2000.0,0.00022893,2]
[319440073,1710741050395,-200.0,0.00022893,2]
[319440074,1710741050404,-1850.41771379,0.00022893,2]
[319440075,1710741050414,-200.0,0.00022893,2]
[319440076,1710741050423,-306.0676328,0.00023,2]
[319440077,1710741050433,-787.557619,0.00023,23]
[319440078,1710741050443,-5007.61995984,0.00023,2]
[319440079,1710741050453,-950.0,0.00023,3]
[319440080,1710741050462,-151.32494325,0.00023073,2]
[319440081,1710741050471,-150.0,0.00023216,2]
[319440082,1710741050480,-150.0,0.00023258,2]
[319440083,1710741050490,-155.0,0.00023288,2]
[319440084,1710741050499,-151.20983331,0.00023293,2]
[319440085,1710741050508,-150.78,0.00023423,2]
[319440086,1710741050518,-150.0,0.00023423,2]
[319440087,1710741050527,-150.0,0.00023423,2]
[319440088,1710741050537,-150.0,0.00023464,2]
[319440089,1710741050547,-151.20983331,0.00023496,2]
[319440090,1710741050556,-166.66666666,0.000235,2]
[319440091,1710741050566,-160.0,0.0002351,2]
[319440092,1710741050576,-1919.09106593,0.0002354,2]
[319440093,1710741050585,-152.41830901,0.00023641,2]
[319440094,1710741050595,-152.29531727,0.00023718,2]
[319440095,1710741050604,-150.0,0.0002372,2]
[319440096,1710741050614,-3000.0,0.000238,2]
[319440097,1710741050623,-342.67,0.00023911,2]
[319440098,1710741050633,-155.0,0.00024,2]
[319440099,1710741050643,-650.0,0.00024,24]
[319440100,1710741050652,-356.4,0.00024,2]
[319440101,1710741050661,-260.53,0.00024,2]
[319440102,1710741050670,-150.0,0.00024048,2]
[319440103,1710741050679,-300.69,0.00024048,2]
[319440104,1710741050689,-150.0,0.00024048,2]
[319440105,1710741050699,-367.66,0.00024048,2]
[319440106,1710741050708,-693.56,0.00024048,2]
[319440107,1710741050717,-150.66,0.00024048,2]
[319440108,1710741050727,-150.0,0.00024048,2]
[319440109,1710741050737,-150.0,0.00024048,2]
[319440110,1710741050747,-150.0,0.00024048,2]
[319440111,1710741050757,-150.0,0.00024048,2]
[319440112,1710741050766,-150.0,0.00024048,2]
[319440113,1710741050776,-150.0,0.00024048,2]
[319440114,1710741050785,-609.11947539,0.0002407,2]
[319440115,1710741050795,-260.53,0.00024137,2]
[319440116,1710741050804,-151.32494325,0.0002418,2]
[319440117,1710741050813,-150.0,0.00024225,2]
[319440118,1710741050823,-150.45,0.00024245,2]
[319440119,1710741050833,-150.0,0.00024245,2]
[319440120,1710741050842,-150.0,0.00024245,2]
[319440121,1710741050852,-1000.23,0.00024273,2]
[319440122,1710741050861,-277.28008787,0.00024274,2]
[319440123,1710741050870,-261.11607263,0.00024332,2]
[319440124,1710741050881,-166.66666667,0.00024426,2]
[319440125,1710741050890,-151.0,0.00024433,2]
[319440126,1710741050900,-11000.0,0.00024463,7]
[319440127,1710741050910,-1000.23,0.00024478,2]
[319440128,1710741050920,-842.13,0.00024574,2]
[319440129,1710741050929,-2000.0,0.00024582,2]
[319440130,1710741050940,-2045.21,0.00024658,10]
[319440131,1710741050950,-155.0,0.00024658,2]
[319440132,1710741050960,-150.0,0.0002473,2]
[319440133,1710741050970,-152.29531727,0.00024753,2]
[319440134,1710741050979,-172.13497557,0.00024763,2]
[319440135,1710741050989,-1000.0,0.000248,2]
[319440136,1710741050999,-152.41830901,0.00024824,2]
[319440137,1710741051010,-1000.0,0.000249,2]
[319440138,1710741051020,-5000.0,0.000249,2]
[319440139,1710741051030,-28102.01856923,0.000249,2]
[319440140,1710741051040,-193.07832709,0.000249,4]
[319440141,1710741051050,-454.0,0.00024932,2]
[319440142,1710741051059,-697.70412,0.00024999,2]
[319440143,1710741051069,-155.0,0.00025,2]
[319440144,1710741051079,-155.0,0.00025,2]
[319440145,1710741051089,-155.0,0.00025,2]
[319440146,1710741051098,-1018.42220439,0.00025,10]
[319440147,1710741051109,-1468.8,0.00025,4]
[319440148,1710741051118,-101227.24543351,0.00025,30]
[319440149,1710741070223,125847.53096072,0.00014,2]
[319440150,1710741093346,415.15695532,0.0001,2]
[319440151,1710741098185,3697.08093297,0.00011,2]
[319440152,1710741199369,241.14057685,0.000101,2]
[319440165,1710741372445,-354.55490198,0.00013999,5]
[319440166,1710741416358,500.0,0.00013621,120]
[319440170,1710741680461,456.29,0.00011052,2]
[319440175,1710742001151,-270.61533971,0.00012935,2]
[319440197,1710742232269,-11053.76,0.00012868,2]
[319440199,1710742232279,-162.96712879,0.000129,2]
[319440200,1710742232289,-150.79556838,0.00013,2]
[319440201,1710742232298,-150.0,0.00013,2]
[319440202,1710742232307,-250.0,0.0001309,2]
[319440203,1710742232317,-162.96712879,0.00013109,2]
[319440204,1710742232327,-189.49,0.00013303,2]
[319440205,1710742232336,-60418.68753944,0.00013314,2]
[319440206,1710742232441,-9004.24160975,0.00013314,2]
[319440207,1710742232587,-1407.58860296,0.00013314,2]
[319440208,1710742232608,-38163.48224785,0.00013314,2]
[319440209,1710742232618,-456.29,0.00013316,2]
[319440210,1710742232627,-162.96712879,0.00013319,2]
[319440211,1710742232637,-587.24614201,0.00013438,2]
[319440212,1710742232647,-162.96712879,0.00013528,2]
[319440213,1710742232657,-154.44630593,0.00013638,2]
[319440214,1710742232666,-154.44630591,0.00013682,2]
[319440215,1710742232676,-468.45,0.00013699,2]
[319440216,1710742232686,-250.0,0.00013699,2]
[319440217,1710742232695,-303136.05474318,0.0001372,2]
[319440232,1710742238380,-17258.37818605,0.0001372,2]
[319440234,1710742238393,-154.44630591,0.00013726,2]
[319440236,1710742238403,-162.96712879,0.00013738,2]
[319440238,1710742238413,-154.44630591,0.0001377,2]
[319440240,1710742238422,-499.99,0.00013783,2]
[319440242,1710742238432,-154.44630591,0.00013815,2]
[319440243,1710742238441,-247.81350763,0.00013889,2]
[319440245,1710742238451,-1000.0,0.000139,2]
[319440248,1710742238460,-247.81350763,0.00013905,2]
[319440249,1710742238469,-401.20916468,0.00013947,2]
[319440251,1710742238478,-162.96712879,0.00013947,2]
[319440253,1710742238487,-441.90727598,0.00013947,2]
[319440255,1710742238497,-3123.49293254,0.00013998,2]
[319440257,1710742238506,-155.13984287,0.00013998,2]
[319440259,1710742238516,-354.55490198,0.00013999,5]
[319440261,1710742238528,-861.40774819,0.00014,3]
[319440263,1710742238537,-29864096.53793564,0.00014,2]
[319440268,1710742238574,-20341.64359698,0.00014,2]
[319440273,1710742238610,-4568.01459775,0.00014,2]
[319440280,1710742240304,-611.40668944,0.00014,2]
[319440281,1710742240316,-463.66351731,0.00014,2]
[319440282,1710742240327,-937.42710038,0.00014,2]
[319440283,1710742240338,-298.89337591,0.00014,2]
[319440284,1710742240549,-9281.72284773,0.00014,2]
[319440285,1710742240603,-4315.44775505,0.00014,2]
[319440286,1710742240616,-991.06,0.00014,2]
[319440287,1710742240627,-3000.20911798,0.00014,2]
[319440290,1710742243335,-154.44630591,0.00013859,2]
[319440291,1710742243344,-800.34859335,0.00014,2]
[319440292,1710742243454,-6617.49428107,0.00014,2]
[319440293,1710742243465,-456.09200729,0.00014,2]
[319440294,1710742243513,-14026.18429181,0.00014,2]
[319440306,1710742246472,-440.74979347,0.00014,2]
[319440307,1710742246557,-0.61231612,0.00014,2]
[319440308,1710742246764,-10992.98074298,0.00014,2]
[319440309,1710742246793,-11416.60152351,0.00014,2]
[319440310,1710742246804,-744.50005983,0.00014,2]
[319440311,1710743362445,-2503.5452,0.00012698,2]
[319440321,1710743431554,-79946.4548,0.00012698,2]
[319440322,1710743431564,-1513.33574706,0.00012816,2]
[319440323,1710743431574,-434.37,0.00013257,2]
[319440324,1710743431584,-3366.1499,0.0001362,2]
[319440325,1710743431594,-274.1704,0.0001362,2]
[319440326,1710743431603,-1000.0,0.0001362,2]
[319440327,1710743431613,-2014.49,0.0001388,2]
[319440328,1710743431623,-154.44630591,0.0001388,2]
[319440329,1710743431633,-198.25080611,0.00013889,2]
[319440330,1710743431642,-12340.74251443,0.00013889,2]
[319440331,1710743431652,-1000.0,0.000139,2]
[319440332,1710743431663,-212782.2341,0.000139,2]
[319440333,1710743431672,-687.16,0.0001398,2]
[319440334,1710743431686,-21900.20644071,0.00014,2]
[319440335,1710743431698,-21266.32679558,0.00014,2]
[319440336,1710743431710,-1926.7925768,0.00014,2]
[319440337,1710743431722,-72596.2306266,0.00014,2]
[319440338,1710743431745,-670.28116184,0.00014,2]
[319440339,1710743431757,-376.2462871,0.00014,2]
[319440340,1710743431781,-20259.9999977,0.00014,2]
[319440341,1710743431793,-655.60712406,0.00014,2]
[319440342,1710743431814,-843.05458522,0.00014,2]
[319440343,1710743431826,-1068.96708038,0.00014,2]
[319440344,1710743431868,-172761.73024602,0.00014,2]
[319440358,1710743437417,-1715.37086992,0.00014,2]
[319440360,1710743437434,-2994.29327005,0.00014,2]
[319440361,1710743437496,-1095.00549089,0.00014,2]
[319440362,1710743437555,-537.9361095,0.00014,2]
[319440363,1710743437686,-9730.29766146,0.00014,2]
[319440364,1710743437712,-424.88047589,0.00014,2]
[319440369,1710743439471,-558.89350208,0.00014,2]
[319440370,1710743439488,-1588.84756029,0.00014,2]
[319440371,1710743439530,-506.883488,0.00014,2]
[319440372,1710743439700,-3780.000005,0.00014,2]
[319440373,1710743439712,-2930.0,0.00014,2]
[319440374,1710743439826,-662.68309162,0.00014,2]
[319440375,1710743439838,-982.24203917,0.00014,2]
[319440378,1710743442539,-3061.04,0.00014,2]
[319440379,1710743442651,-5244.51362991,0.00014,2]
[319440380,1710743442663,-58683.97804281,0.00014,2]
[319440381,1710743442672,-980.72453,0.00014,2]
[319440382,1710743442682,-153.33501115,0.00014352,2]
[319440383,1710743442691,-1507.36222224,0.00014424,2]
[319440384,1710743442700,-1330.5231676,0.00014452,2]
[319440385,1710743442710,-5000.0,0.00015,2]
[319440386,1710743442719,-19371.03892811,0.00015,2]
[319440387,1710743442729,-750.0,0.00015,3]
[319440388,1710743442738,-250.0,0.00015065,2]
[319440389,1710743442747,-600.0,0.00015079,2]
[319440390,1710743442756,-250.0,0.00015089,2]
[319440391,1710743442765,-552.16,0.00015101,2]
[319440392,1710743442774,-1000.0,0.00015167,2]
[319440393,1710743442783,-193.37,0.00015208,2]
[319440394,1710743442792,-234.22,0.00015264,2]
[319440395,1710743442811,-264.09,0.00015418,2]
[319440396,1710743442821,-151.93,0.00015453,2]
[319440397,1710743442831,-264.09,0.00015475,2]
[319440398,1710743442841,-167.42,0.00015489,2]
[319440399,1710743442850,-434.37,0.00015521,2]
[319440400,1710743442860,-264.09,0.00015532,2]
[319440401,1710743442869,-151.93,0.00015536,2]
[319440402,1710743442882,-264.09,0.00015589,2]
[319440403,1710743442891,-151.93,0.00015619,2]
[319440404,1710743442901,-264.09,0.00015645,2]
[319440405,1710743442911,-264.09,0.00015702,2]
[319440406,1710743442921,-151.93,0.00015703,2]
[319440407,1710743442930,-198.25080611,0.00015706,2]
[319440408,1710743442939,-5620.22718784,0.00015706,2]
[319440409,1710743442966,-5944.148738,0.00015706,2]
[319440410,1710743442978,-776.36658857,0.00015706,2]
[319440411,1710743442987,-264.09,0.00015759,2]
[319440412,1710743442996,-151.93,0.00015786,2]
[319440413,1710743443005,-264.09,0.00015816,2]
[319440414,1710743443015,-151.93,0.00015869,2]
[319440415,1710743443024,-264.09,0.00015872,2]
[319440417,1710743443033,-264.09,0.00015929,2]
[319440419,1710743443043,-151.93,0.00015952,2]
[319440421,1710743443052,-264.09,0.00015986,2]
[319440423,1710743443061,-151.0,0.00016,2]
[319440425,1710743443070,-151.93,0.00016035,2]
[319440428,1710743443080,-93.24991454,0.00016043,2]
[319440429,1710743443105,-170.84008546,0.00016043,2]
[319440430,1710743443114,-153.33501113,0.00016066,2]
[319440431,1710743443123,-264.09,0.000161,2]
[319440432,1710743443133,-151.93,0.00016119,2]
[319440433,1710743443142,-264.09,0.00016156,2]
[319440434,1710743443151,-151.93,0.00016202,2]
[319440435,1710743443161,-264.09,0.00016213,2]
[319440436,1710743443170,-264.09,0.0001627,2]
[319440437,1710743443180,-151.93,0.00016285,2]
[319440438,1710743443190,-264.09,0.00016327,2]
[319440439,1710743443199,-151.93,0.00016368,2]
[319440440,1710743443209,-264.09,0.00016384,2]
[319440441,1710743443219,-5376.0,0.000164,2]
[319440442,1710743443228,-264.09,0.0001644,2]
[319440443,1710743443237,-151.93,0.00016451,2]
[319440444,1710743443246,-264.09,0.00016497,2]
[319440445,1710743443255,-151.93,0.00016535,2]
[319440446,1710743443264,-150.71636583,0.00016874,2]
[319440447,1710743443274,-150.51497173,0.0001688,2]
[319440448,1710743443283,-600.0,0.00016964,2]
[319440449,1710743443292,-800.0,0.00017,3]
[319440450,1710743443301,-1000.0,0.00017063,2]
[319440451,1710743443311,-831.0,0.000172,2]
[319440452,1710743443320,-150.49823158,0.00017277,2]
[319440453,1710743443329,-198.25080611,0.00017531,2]
[319440454,1710743443338,-12340.74251441,0.00017531,2]
[319440455,1710743443348,-151.20983332,0.00017559,2]
[319440456,1710743443357,-40.24682141,0.00017603,2]
[319440457,1710743443425,-116.61485978,0.00017603,2]
[319440458,1710743443434,-229.0582936,0.00017774,2]
[319440467,1710743445624,-262.07844978,0.00017585,2]
[319440468,1710743445636,-15.92155022,0.00017585,2]
[319440469,1710743445645,-4770.9417064,0.00017774,2]
[319440470,1710743445654,-176.58802336,0.0001778,2]
[319440471,1710743445664,-152.67629887,0.0001778,2]
[319440472,1710743445673,-250.01548672,0.0001778,2]
[319440473,1710743445684,-153.33501113,0.0001778,2]
[319440474,1710743445694,-12359.89005899,0.0001778,2]
[319440475,1710743445703,-434.37,0.00017785,2]
[319440476,1710743445713,-30275.44559297,0.000178,2]
[319440477,1710743445742,-691.48440606,0.000178,2]
[319440478,1710744237976,-1676.3341,0.00012598,2]
[319440479,1710744237999,-42523.6659,0.00013,2]
[319440480,1710744292672,-185.0,0.00013,2]
[319440481,1710744560151,-675.38613006,0.00013,2]
[319440482,1710744565318,-1037.28899626,0.00013,2]
[319440490,1710744631750,-46.46287166,0.00013,2]
[319440491,1710744631761,-456.69145616,0.00014,2]
[319440492,1710744631773,-340.40155357,0.00014,2]
[319440493,1710744631863,-232.41569021,0.00014,2]
[319440494,1710744631873,-377.12,0.00014948,2]
[319440495,1710744631882,-231.25999953,0.00015,2]
[319440496,1710744631893,-663.82444517,0.00015,2]
[319440497,1710744631905,-723.29357829,0.00015,2]
[319440498,1710744631917,-3381.62197701,0.00015,2]
[319440499,1710744631927,-190.22124676,0.00016616,2]
[319440500,1710744631955,-59.77875324,0.00016616,2]
[319440501,1710744631964,-191.03,0.00016616,2]
[319440502,1710744631973,-650.99,0.00016676,2]
[319440503,1710744631983,-2519.90124676,0.00016722,2]
[319440504,1710744631998,-279.69657276,0.00016722,2]
[319440505,1710744632014,-1062.38997499,0.00016722,2]
[319440506,1710744632091,-1071.35837695,0.00016722,2]
[319440507,1710744632103,-448.74875887,0.00016722,2]
[319440508,1710744632115,-12223.31584776,0.00016722,2]
[319440520,1710744637687,-750.0,0.00015,3]
[319440521,1710744637697,-6397.14922191,0.00016722,2]
[319440522,1710744637707,-250.0,0.00016763,2]
[319440523,1710744637716,-195.19,0.00016814,2]
[319440524,1710744637726,-150.0,0.00016904,2]
[319440525,1710744637735,-499.99,0.00016904,2]
[319440526,1710744637745,-1000.0,0.00016926,2]
[319440527,1710744637755,-1510.13813781,0.00017,2]
[319440528,1710744637796,-5.01780583,0.00017,2]
[319440529,1710744637818,-484.84405636,0.00017,2]
[319440530,1710744637827,-800.0,0.00017,3]
[319440531,1710744637837,-161.15,0.00017011,2]
[319440532,1710744637846,-11003.084,0.00017181,2]
[319440533,1710744637855,-377.12,0.00017212,2]
[319440534,1710744637864,-10814.769,0.00017389,2]
[319440535,1710744637874,-152.41830902,0.00017395,2]
[319440536,1710744637883,-240.0,0.00017441,2]
[319440537,1710744637892,-817.27044,0.0001762,2]
[319440538,1710744637902,-150.49823159,0.00017735,2]
[319440539,1710744637915,-1000.0,0.0001778,2]
[319440540,1710744637925,-5000.0,0.0001778,2]
[319440541,1710744637934,-152.67629884,0.0001778,2]
[319440542,1710744637943,-6783.03544354,0.0001778,2]
[319440543,1710744638007,-16026.45759881,0.0001778,2]
[319440549,1710744639804,-1906.78785238,0.0001778,2]
[319440550,1710744639815,-607.18921873,0.0001778,2]
[319440551,1710744639934,-4300.0000005,0.0001778,2]
[319440552,1710744639948,-5177.65818604,0.0001778,2]
[319440553,1710744639957,-537.19553339,0.00017789,2]
[319440554,1710744639967,-154.44630591,0.00017789,2]
[319440555,1710744639977,-7849.49997466,0.00017789,2]
[319440556,1710744640117,-789.01978549,0.00017789,2]
[319440557,1710744640126,-2829.42814937,0.00017789,2]
[319440558,1710744640135,-390.51840013,0.00017789,2]
[319440572,1710744642700,-6494.19044807,0.00017789,2]
[319440575,1710744642716,-989.50832623,0.00017789,2]
[319440579,1710744642767,-6422.22654286,0.00017789,2]
[319440580,1710744642778,-791.50348137,0.00017799,2]
[319440581,1710744642789,-9469.27624431,0.000178,2]
[319440582,1710744642799,-867.59829111,0.000178,2]
[319440583,1710744642809,-1342.061629,0.00017814,2]
[319440584,1710744642819,-1218.52654407,0.00017872,2]
[319440585,1710744642828,-1413786.39532449,0.00017872,2]
[319440586,1710744642838,-566517.67211355,0.0001788,2]
[319440587,1710744642869,-139.79200846,0.0001788,2]
[319440588,1710744642982,-253.598,0.0001788,2]
[319440589,1710744643004,-735.896,0.0001788,2]
[319440590,1710744643051,-1004.6,0.0001788,2]
[319440598,1710744645736,-5000.0,0.00017879,2]
[319440599,1710744645747,-12259.49999998,0.0001788,2]
[319440600,1710744645761,-6965.16283997,0.0001788,2]
[319440601,1710744645773,-6223.19581355,0.0001788,2]
[319440602,1710745370338,389.13,0.00011095,2]
[319440625,1710745818651,369.67,0.0001083,2]
[319440639,1710745832286,-1280.29601648,0.0001264,2]
[319440640,1710745832297,-205.26974352,0.00012641,2]
[319440641,1710745832306,-155.0,0.00012642,2]
[319440642,1710745832315,-548.03033973,0.00012642,2]
[319440643,1710745832324,-1818.35821907,0.00012643,2]
[319440644,1710745832333,-202.74751577,0.00012741,2]
[319440645,1710745832343,-164.71557444,0.00012746,2]
[319440646,1710745832353,-182.65,0.00012854,2]
[319440647,1710745832362,-1546.03,0.00012952,2]
[319440648,1710745832372,-1818.35821905,0.00012961,2]
[319440649,1710745832381,-15642.37936687,0.00013014,2]
[319440650,1710745832417,-1644.64063313,0.00013014,2]
[319440651,1710745832427,-200.0,0.00013061,2]
[319440652,1710745832436,-250.0,0.00013068,2]
[319440653,1710745832445,-369.67,0.00013094,2]
[319440654,1710745832454,-192.0,0.00013134,2]
[319440655,1710745832464,-2503.0,0.00013447,2]
[319440656,1710745832473,-161.15,0.00013466,2]
[319440657,1710745832482,-21390.49140275,0.00013496,2]
[319440658,1710745832495,-250.0,0.00013699,2]
[319440659,1710745832505,-195.19,0.00013699,2]
[319440660,1710745832514,-199.68751182,0.00013899,2]
[319440661,1710745832523,-7698.38966722,0.00013899,2]
[319440662,1710745832532,-261.11607269,0.00013899,2]
[319440663,1710745832541,-199.68751182,0.00013899,2]
[319440664,1710745832551,-7698.38966715,0.00013899,2]
[319440665,1710745832560,-7698.38966715,0.00013899,2]
[319440666,1710745832569,-199.68751182,0.00013899,2]
[319440667,1710745832578,-7698.38966715,0.00013899,2]
[319440668,1710745832587,-7698.38966715,0.00013899,2]
[319440669,1710745832597,-199.68751182,0.000139,2]
[319440670,1710745832606,-7698.38966715,0.000139,2]
[319440671,1710745832616,-7698.38966715,0.000139,2]
[319440672,1710745832626,-199.68751182,0.000139,2]
[319440674,1710745832636,-7698.38966715,0.000139,2]
[319440676,1710745832645,-7698.38966715,0.000139,2]
[319440678,1710745832656,-5101.0751,0.000139,2]
[319440680,1710745832664,-176.58802336,0.000139,2]
[319440682,1710745832673,-2148.78213352,0.000139,2]
[319440684,1710745832682,-250.01548672,0.000139,2]
[319440686,1710745832691,-763.38149423,0.000139,2]
[319440687,1710745832701,-199.68751182,0.000139,2]
[319440688,1710745832711,-7698.38966715,0.000139,2]
[319440689,1710745832720,-5658.8562987,0.000139,2]
[319440690,1710745832729,-153.33501113,0.000139,2]
[319440691,1710745832739,-28592.88743458,0.000139,2]
[319440692,1710745832750,-267.67057778,0.00013996,2]
[319440693,1710745832759,-27003.97099959,0.00013997,2]
[319440694,1710745832768,-919.07265261,0.00013998,2]
[319440695,1710745832778,-171.02983029,0.00013998,2]
[319440696,1710745832787,-785.21790902,0.00013998,2]
[319440697,1710745832796,-202874.887183,0.00013998,2]
[319440698,1710745832806,-155.0,0.00013999,2]
[319440699,1710745832815,-358.13330688,0.00013999,2]
[319440700,1710745832824,-94391.92728298,0.00013999,2]
[319440710,1710745837974,-72948.37940031,0.00013999,2]
[319440711,1710745837990,-989.29365332,0.00014,3]
[319440712,1710745838005,-29859008.31044397,0.00014,2]
[319440713,1710745838024,-829.91273102,0.00014,2]
[319440714,1710745838054,-5068.01569616,0.00014,2]
[319440715,1710745838071,-16512.36618625,0.00014,2]
[319440716,1710745838090,-350.337838,0.00014,2]
[319440717,1710745838108,-2309.28934368,0.00014,2]
[319440718,1710745838209,-449183.4692223,0.00014,2]
[319440719,1710745838224,-406.15792888,0.00014,2]
[319440720,1710745838239,-2064.02867889,0.00014,2]
[319440721,1710745838255,-192.0,0.00014776,2]
[319440722,1710745838269,-160807.35616404,0.000148,2]
[319440723,1710745838285,-16700.90273767,0.00015,2]
[319440724,1710745838310,-6801.72185045,0.00015,2]
[319440727,1710745838324,-500.0,0.00015,2]
[319440730,1710745838338,-5000.0,0.00015,2]
[319440732,1710745838353,-369.67,0.00015358,2]
[319440735,1710745838368,-182.65,0.00015594,2]
[319440737,1710745838383,-1546.03,0.00015692,2]
[319440740,1710745838397,-408.0,0.00015778,2]
[319440742,1710745838411,-172.47,0.00015906,2]
[319440745,1710745838426,-824.0,0.000163,2]
[319440748,1710745838442,-192.0,0.00016417,2]
[319440750,1710745838454,-1035.03631322,0.00016722,2]
[319440752,1710745838463,-172.47,0.0001702,2]
[319440754,1710745838473,-878.12596,0.00017123,7]
[319440756,1710745838483,-369.67,0.00017622,2]
[319440758,1710745838493,-555.1098,0.0001768,2]
[319440760,1710745838503,-5669.0,0.00017683,2]
[319440762,1710745838513,-9588.43807633,0.00017683,2]
[319440867,1710745839960,-1225.9601853,0.00017683,2]
[319440868,1710745840081,-255.0,0.00017683,2]
[319440869,1710745840093,-1002.01720127,0.00017683,2]
[319440870,1710745840105,-2055.12,0.00017683,2]
[319440871,1710745840118,-1307.97696,0.00017683,2]
[319440872,1710745840254,-452.56499931,0.00017683,2]
[319440897,1710745842933,-3271.89913084,0.00013998,2]
[319440899,1710745842942,-155.24084566,0.00013998,2]
[319440901,1710745842953,-164.87044309,0.00017682,2]
[319440903,1710745842962,-193.94631493,0.00017682,2]